fUST/lending_fUST_20250502
["ID","MTS","AMOUNT","RATE_DAILY","PERIOD"]
[359618751,1746185457031,-400.0,0.00020273,2]
[359618752,1746185457041,-649.86,0.00020273,2]
[359618753,1746185457051,-233.92732212,0.00020273,2]
[359618754,1746185457065,-3082.03267788,0.00020273,2]
[359618755,1746185457075,-482.45,0.00020273,2]
[359618756,1746185457085,-400.0,0.00020273,2]
[359618757,1746185457096,-2683.67,0.00020273,2]
[359618758,1746185457106,-7081.54,0.00020273,2]
[359618759,1746185457116,-3011.23,0.00020273,2]
[359618760,1746185457126,-458.52,0.00020273,2]
[359618761,1746185457136,-400.0,0.00020273,2]
[359618762,1746185457147,-3881.91,0.00020273,2]
[359618763,1746185457157,-149.21439337,0.00020273,2]
[359618764,1746185457170,-599.95560663,0.00020273,2]
[359618765,1746185457180,-1736.10100427,0.00020273,2]
[359618766,1746185457193,-444.09899573,0.00020273,2]
[359618767,1746185457203,-424.63,0.00020273,2]
[359618768,1746185457213,-443.79,0.00020273,2]
[359618769,1746185457223,-2888.0,0.00020273,2]
[359618770,1746185457233,-400.0,0.00020273,2]
[359618771,1746185457243,-696.03596633,0.00020273,2]
[359618772,1746185457256,-651.11403367,0.00020273,2]
[359618773,1746185457267,-727.94,0.00020273,2]
[359618774,1746185457277,-473.74,0.00020273,2]
[359618775,1746185457287,-1199.02,0.00020273,2]
[359618776,1746185457297,-427.51400491,0.00020273,2]
[359618777,1746185457307,-807.46,0.00020273,2]
[359618778,1746185457318,-400.0,0.00020273,2]
[359618779,1746185457328,-436.86,0.00020273,2]
[359618780,1746185457344,-400.0,0.00020273,2]
[359618781,1746185457356,-400.0,0.00020273,2]
[359618782,1746185457366,-3425.0,0.00020273,2]
[359618783,1746185457376,-400.0,0.00020273,2]
[359618784,1746185457386,-6058.19,0.00020273,2]
[359618785,1746185457397,-2963.19,0.00020273,2]
[359618786,1746185457407,-643.95,0.00020273,2]
[359618787,1746185457418,-1423.0,0.00020273,2]
[359618788,1746185457428,-487.89,0.00020273,2]
[359618789,1746185457439,-1313.55,0.00020273,2]
[359618790,1746185457451,-400.0,0.00020273,2]
[359618791,1746185457461,-765.3,0.00020273,2]
[359618792,1746185457473,-484.53,0.00020273,2]
[359618793,1746185457486,-485.46,0.00020273,2]
[359618794,1746185457497,-1964.82,0.00020273,2]
[359618795,1746185457507,-2789.66328486,0.00020273,2]
[359618796,1746185457522,-454.01671514,0.00020273,2]
[359618797,1746185457533,-400.0,0.00020273,2]
[359618798,1746185457543,-842.14,0.00020273,2]
[359618799,1746185457554,-400.0,0.00020273,2]
[359618800,1746185457564,-400.0,0.00020273,2]
[359618801,1746185457575,-400.0,0.00020273,2]
[359618802,1746185457585,-1021.05,0.00020273,2]
[359618803,1746185457595,-406.75,0.00020273,2]
[359618804,1746185457606,-1593.19,0.00020273,2]
[359618805,1746185457616,-400.0,0.00020273,2]
[359618806,1746185457627,-645.7,0.00020273,2]
[359618807,1746185457637,-400.0,0.00020273,2]
[359618808,1746185457648,-400.0,0.00020273,2]
[359618809,1746185457659,-750.38,0.00020273,2]
[359618810,1746185457670,-1063.72,0.00020273,2]
[359618811,1746185457680,-899.32,0.00020273,2]
[359618812,1746185457690,-2639.3,0.00020273,2]
[359618813,1746185457700,-400.0,0.00020273,2]
[359618814,1746185457710,-400.0,0.00020273,2]
[359618815,1746185457720,-569.55,0.00020273,2]
[359618816,1746185457731,-558.7,0.00020273,2]
[359618817,1746185457742,-2594.36,0.00020273,2]
[359618818,1746185457751,-433.72,0.00020273,2]
[359618819,1746185457761,-400.0,0.00020273,2]
[359618820,1746185457772,-400.0,0.00020273,2]
[359618821,1746185457782,-404.68059444,0.00020273,2]
[359618822,1746185457792,-400.0,0.00020273,2]
[359618823,1746185457803,-400.0,0.00020273,2]
[359618824,1746185457813,-2628.26,0.00020273,2]
[359618825,1746185457824,-8714.29,0.00020273,2]
[359618826,1746185457834,-480.3,0.00020273,2]
[359618827,1746185457845,-985.69,0.00020273,2]
[359618828,1746185457856,-434.76,0.00020273,2]
[359618829,1746185457866,-400.0,0.00020273,2]
[359618830,1746185457877,-1331.82,0.00020273,2]
[359618831,1746185457887,-1859.75,0.00020273,2]
[359618832,1746185457899,-1074.08,0.00020273,2]
[359618833,1746185457911,-400.0,0.00020273,2]
[359618834,1746185457922,-1345.66,0.00020273,2]
[359618835,1746185457933,-400.0,0.00020273,2]
[359618836,1746185457946,-500.0,0.00020273,2]
[359618837,1746185457956,-400.0,0.00020273,2]
[359618838,1746185457966,-3197.69,0.00020273,2]
[359618839,1746185457976,-803.39,0.00020273,2]
[359618840,1746185457987,-1072.5,0.00020273,2]
[359618841,1746185457997,-665.07,0.00020273,2]
[359618842,1746185458007,-3408.71,0.00020273,2]
[359618843,1746185458018,-400.0,0.00020273,2]
[359618844,1746185458028,-820.08,0.00020273,2]
[359618845,1746185458039,-732.55,0.00020273,2]
[359618846,1746185458049,-472.58,0.00020273,2]
[359618847,1746185458060,-2446.61,0.00020273,2]
[359618848,1746185458071,-2929.98,0.00020273,2]
[359618849,1746185458081,-400.0,0.00020273,2]
[359618850,1746185458092,-842.6,0.00020273,2]
[359618851,1746185458103,-3349.54,0.00020273,2]
[359618852,1746185458114,-400.0,0.00020273,2]
[359618853,1746185458125,-1748.95,0.00020273,2]
[359618854,1746185458135,-690.07,0.00020273,2]
[359618855,1746185458146,-1928.04,0.00020273,2]
[359618856,1746185458156,-400.0,0.00020273,2]
[359618857,1746185458166,-2082.42,0.00020273,2]
[359618858,1746185458177,-400.0,0.00020273,2]
[359618859,1746185458188,-706.1,0.00020273,2]
[359618860,1746185458200,-495.93,0.00020273,2]
[359618861,1746185458211,-1111.57,0.00020273,2]
[359618862,1746185458222,-400.0,0.00020273,2]
[359618863,1746185458232,-428.93359684,0.00020273,2]
[359618864,1746185458582,-209.27675791,0.00019178,2]
[359618865,1746185458592,-400.0,0.00019178,2]
[359618866,1746185458602,-1231.21640316,0.00020273,2]
[359618867,1746185458612,-620.3,0.00020273,2]
[359618868,1746185458622,-1795.09,0.00020273,2]
[359618869,1746185458632,-2337.77,0.00020273,2]
[359618870,1746185458644,-400.0,0.00020273,2]
[359618871,1746185458654,-400.0,0.00020273,2]
[359618872,1746185458664,-206.40619473,0.00020273,2]
[359618873,1746185458674,-939.85446119,0.00020273,2]
[359618874,1746185458687,-3092.94174463,0.00020273,2]
[359618875,1746185458700,-1493.79999999,0.00020273,2]
[359618876,1746185458717,-200.0,0.00019178,2]
[359618877,1746185458727,-655.99379419,0.00020273,2]
[359618878,1746185458738,-400.0,0.00020273,2]
[359618879,1746185458749,-400.0,0.00020273,2]
[359618880,1746185458761,-400.0,0.00020273,2]
[359618881,1746185458771,-727.49000828,0.00020273,2]
[359618882,1746185458784,-800.067811,0.00020273,2]
[359618883,1746185458796,-5702.8860896,0.00020273,2]
[359618884,1746185458809,-1820.89999999,0.00020273,2]
[359618885,1746185458822,-656.9768466,0.00020273,2]
[359618886,1746185468176,250.0,0.00017937,2]
[359618887,1746185503124,308.67118355,0.00017937,2]
[359618893,1746185734572,258.895271,0.00017035,2]
[359618895,1746185900432,1952.23353273,0.00017929,2]
[359618897,1746185948545,155.520863,0.000245,30]
[359618898,1746185948831,155.520863,0.000245,31]
[359618903,1746186033948,250.0,0.00017024,2]
[359618904,1746186090783,1708.20434113,0.00017918,2]
[359618912,1746186276116,1494.67879848,0.00017917,2]
[359618915,1746186467183,1307.84394867,0.00017915,2]
[359618916,1746186548193,155.520865,0.000245,30]
[359618957,1746186632151,-274.0,0.00018013,2]
[359618959,1746186632161,-300.0,0.00018013,2]
[359618961,1746186632170,-300.0,0.00018013,2]
[359618963,1746186632179,-1200.0,0.00018013,2]
[359618965,1746186632189,-300.0,0.00018013,2]
[359618967,1746186632199,-502.68364857,0.00018014,2]
[359618969,1746186632208,-500.0,0.00018014,2]
[359618971,1746186632217,-240.75744708,0.00018014,2]
[359618974,1746186632238,-259.24255292,0.00018014,2]
[359618976,1746186632247,-518.10280273,0.00018014,2]
[359618978,1746186632257,-500.0,0.00018014,2]
[359618980,1746186632267,-500.0,0.00018014,2]
[359618982,1746186632276,-500.0,0.00018014,2]
[359618984,1746186632285,-500.0,0.00018014,2]
[359618986,1746186632294,-500.0,0.00018014,2]
[359618988,1746186632304,-503.73298401,0.00018014,2]
[359618990,1746186632314,-500.0,0.00018014,2]
[359618992,1746186632323,-500.0,0.00018014,2]
[359618994,1746186632332,-500.0,0.00018014,2]
[359618996,1746186632342,-500.0,0.00018014,2]
[359618999,1746186632353,-500.0,0.00018014,2]
[359619001,1746186632363,-500.0,0.00018014,2]
[359619003,1746186632373,-547.62586996,0.00018014,2]
[359619005,1746186632382,-500.0,0.00018014,2]
[359619007,1746186632391,-500.0,0.00018014,2]
[359619009,1746186632400,-500.0,0.00018014,2]
[359619010,1746186632409,-217.39899122,0.00018014,2]
[359619012,1746186632418,-500.0,0.00018014,2]
[359619014,1746186632428,-458.0,0.00018014,2]
[359619015,1746186632438,-500.0,0.00018014,2]
[359619016,1746186632448,-500.0,0.00018014,2]
[359619017,1746186632458,-201.06101226,0.00018014,2]
[359619018,1746186632467,-500.0,0.00018014,2]
[359619019,1746186632477,-500.0,0.00018014,2]
[359619020,1746186632487,-500.0,0.00018014,2]
[359619021,1746186632497,-500.0,0.00018014,2]
[359619022,1746186632506,-500.0,0.00018014,2]
[359619023,1746186632516,-500.0,0.00018014,2]
[359619024,1746186632525,-500.0,0.00018014,2]
[359619025,1746186632534,-500.0,0.00018014,2]
[359619026,1746186632544,-500.0,0.00018014,2]
[359619027,1746186632554,-500.0,0.00018014,2]
[359619028,1746186632563,-500.0,0.00018014,2]
[359619029,1746186632572,-500.0,0.00018014,2]
[359619030,1746186632582,-500.0,0.00018014,2]
[359619031,1746186632592,-500.0,0.00018014,2]
[359619032,1746186632602,-500.0,0.00018014,2]
[359619033,1746186632611,-500.0,0.00018014,2]
[359619034,1746186632621,-500.0,0.00018014,2]
[359619035,1746186632631,-500.0,0.00018014,2]
[359619036,1746186632640,-500.0,0.00018014,2]
[359619037,1746186632650,-500.0,0.00018014,2]
[359619038,1746186632661,-500.0,0.00018014,2]
[359619039,1746186632670,-500.0,0.00018014,2]
[359619040,1746186632680,-500.0,0.00018014,2]
[359619041,1746186632689,-500.0,0.00018014,2]
[359619042,1746186632699,-232.8957869,0.00018014,2]
[359619066,1746186638175,-267.1042131,0.00018014,2]
[359619069,1746186638188,-500.0,0.00018014,2]
[359619071,1746186638199,-500.0,0.00018014,2]
[359619072,1746186638210,-500.0,0.00018014,2]
[359619074,1746186638221,-500.0,0.00018014,2]
[359619075,1746186638233,-500.0,0.00018014,2]
[359619076,1746186638244,-500.0,0.00018014,2]
[359619077,1746186638256,-500.0,0.00018014,2]
[359619078,1746186638267,-500.0,0.00018014,2]
[359619079,1746186638278,-500.0,0.00018014,2]
[359619080,1746186638289,-500.0,0.00018014,2]
[359619081,1746186638300,-500.0,0.00018014,2]
[359619082,1746186638312,-500.0,0.00018014,2]
[359619083,1746186638322,-500.0,0.00018014,2]
[359619084,1746186638333,-500.0,0.00018014,2]
[359619085,1746186638344,-500.0,0.00018014,2]
[359619086,1746186638355,-500.0,0.00018014,2]
[359619087,1746186638366,-500.0,0.00018014,2]
[359619089,1746186638378,-500.0,0.00018014,2]
[359619091,1746186638389,-500.0,0.00018014,2]
[359619092,1746186638399,-500.0,0.00018014,2]
[359619093,1746186638411,-500.0,0.00018014,2]
[359619094,1746186638421,-500.0,0.00018014,2]
[359619095,1746186638432,-500.0,0.00018014,2]
[359619096,1746186638443,-500.0,0.00018014,2]
[359619098,1746186638454,-500.0,0.00018014,2]
[359619100,1746186638465,-500.0,0.00018014,2]
[359619101,1746186638476,-500.0,0.00018014,2]
[359619102,1746186638487,-500.0,0.00018014,2]
[359619103,1746186638498,-500.0,0.00018014,2]
[359619104,1746186638510,-500.0,0.00018014,2]
[359619105,1746186638521,-354.23374093,0.00018014,2]
[359619106,1746186638533,-500.0,0.00018014,2]
[359619107,1746186638543,-500.0,0.00018014,2]
[359619108,1746186638554,-500.0,0.00018014,2]
[359619109,1746186638565,-500.0,0.00018014,2]
[359619110,1746186638576,-500.0,0.00018014,2]
[359619111,1746186638587,-500.0,0.00018014,2]
[359619112,1746186638598,-243.75586875,0.00018014,2]
[359619113,1746186638609,-500.0,0.00018014,2]
[359619114,1746186638620,-500.0,0.00018014,2]
[359619115,1746186638632,-500.0,0.00018014,2]
[359619116,1746186638643,-500.0,0.00018014,2]
[359619117,1746186638654,-500.0,0.00018014,2]
[359619118,1746186638666,-500.0,0.00018014,2]
[359619119,1746186638677,-500.0,0.00018014,2]
[359619120,1746186638688,-500.0,0.00018014,2]
[359619121,1746186638700,-500.0,0.00018014,2]
[359619122,1746186638711,-500.0,0.00018014,2]
[359619123,1746186638723,-500.0,0.00018014,2]
[359619124,1746186638735,-500.0,0.00018014,2]
[359619125,1746186638746,-500.0,0.00018014,2]
[359619126,1746186638757,-579.71099902,0.00018014,2]
[359619127,1746186638768,-500.0,0.00018014,2]
[359619128,1746186638779,-500.0,0.00018014,2]
[359619129,1746186638790,-500.0,0.00018014,2]
[359619130,1746186638800,-500.0,0.00018014,2]
[359619131,1746186638813,-500.0,0.00018014,2]
[359619132,1746186638823,-500.0,0.00018014,2]
[359619133,1746186638833,-500.0,0.00018014,2]
[359619134,1746186638844,-500.0,0.00018014,2]
[359619135,1746186638854,-338.10366831,0.00018014,2]
[359619136,1746186638865,-500.0,0.00018014,2]
[359619137,1746186638876,-500.0,0.00018014,2]
[359619138,1746186638888,-500.0,0.00018014,2]
[359619139,1746186638900,-500.0,0.00018014,2]
[359619140,1746186638911,-500.0,0.00018014,2]
[359619141,1746186638923,-500.0,0.00018014,2]
[359619142,1746186638935,-500.0,0.00018014,2]
[359619143,1746186638946,-500.0,0.00018014,2]
[359619144,1746186638957,-500.0,0.00018014,2]
[359619145,1746186638967,-500.0,0.00018014,2]
[359619146,1746186638977,-500.0,0.00018014,2]
[359619147,1746186638988,-500.0,0.00018014,2]
[359619148,1746186638999,-7608.28722037,0.00018015,2]
[359619149,1746186639010,-45297.31,0.0001802,2]
[359619150,1746186639021,-353.31,0.00018027,3]
[359619151,1746186639033,-176.66,0.00018027,3]
[359619152,1746186639045,-530.0,0.00018027,3]
[359619153,1746186639056,-1333.84244117,0.00018037,2]
[359619154,1746186639068,-353431.37576692,0.00018037,2]
[359619155,1746186639260,-413809.46423308,0.00018037,2]
[359619156,1746186639271,-152.0,0.00018151,2]
[359619157,1746186639282,-207.4,0.00018585,2]
[359619158,1746186639293,-612.87513874,0.00018668,2]
[359619159,1746186639304,-24900.0,0.00018706,2]
[359619160,1746186639315,-3032.2240193,0.00018706,2]
[359619161,1746186639327,-173.61579542,0.00018778,2]
[359619162,1746186639336,-179.56415241,0.00019078,2]
[359619163,1746186639347,-800.0,0.000191,2]
[359619164,1746186639357,-501.35569334,0.00019173,2]
[359619165,1746186639368,-537.77771803,0.00019173,2]
[359619166,1746186639379,-400.0,0.00019178,2]
[359619167,1746186639388,-400.0,0.00019178,2]
[359619168,1746186639398,-500.0,0.00019178,2]
[359619169,1746186639408,-400.16175138,0.00019178,2]
[359619170,1746186639417,-519.59724508,0.00019178,2]
[359619171,1746186639427,-400.0,0.00019178,2]
[359619172,1746186639436,-400.0,0.00019178,2]
[359619173,1746186639446,-400.0,0.00019178,2]
[359619174,1746186639456,-500.0,0.00019178,2]
[359619175,1746186639467,-500.0,0.00019178,2]
[359619176,1746186639477,-400.0,0.00019178,2]
[359619177,1746186639487,-400.0,0.00019178,2]
[359619178,1746186639497,-400.0,0.00019178,2]
[359619179,1746186639506,-400.0,0.00019178,2]
[359619180,1746186639516,-400.0,0.00019178,2]
[359619181,1746186639526,-540.133429,0.00019178,2]
[359619182,1746186639535,-400.0,0.00019178,2]
[359619183,1746186639545,-400.0,0.00019178,2]
[359619184,1746186639554,-400.0,0.00019178,2]
[359619185,1746186639564,-400.0,0.00019178,2]
[359619186,1746186639573,-400.0,0.00019178,2]
[359619187,1746186639914,-400.0,0.00019178,2]
[359619188,1746186639933,-400.0,0.00019178,2]
[359619189,1746186639947,-400.0,0.00019178,2]
[359619190,1746186639957,-506.46345419,0.00019178,2]
[359619191,1746186639966,-400.0,0.00019178,2]
[359619192,1746186639976,-400.0,0.00019178,2]
[359619193,1746186639985,-423.69,0.00019178,2]
[359619194,1746186639994,-400.0,0.00019178,2]
[359619195,1746186640004,-400.0,0.00019178,2]
[359619196,1746186640013,-400.0,0.00019178,2]
[359619197,1746186640022,-400.0,0.00019178,2]
[359619198,1746186640032,-400.0,0.00019178,2]
[359619199,1746186640041,-400.0,0.00019178,2]
[359619200,1746186640051,-400.0,0.00019178,2]
[359619201,1746186640061,-622.88,0.00019178,2]
[359619202,1746186640071,-400.0,0.00019178,2]
[359619203,1746186640081,-278.09,0.00019178,2]
[359619204,1746186640090,-400.0,0.00019178,2]
[359619205,1746186640100,-400.0,0.00019178,2]
[359619206,1746186640110,-547.19947515,0.00019178,2]
[359619207,1746186640119,-510.57,0.00019178,2]
[359619208,1746186640128,-400.0,0.00019178,2]
[359619209,1746186640138,-400.0,0.00019178,2]
[359619210,1746186640147,-400.0,0.00019178,2]
[359619211,1746186640159,-400.0,0.00019178,2]
[359619213,1746186640168,-371.01915026,0.00019178,2]
[359619215,1746186640178,-400.0,0.00019178,2]
[359619217,1746186640188,-400.0,0.00019178,2]
[359619219,1746186640199,-400.0,0.00019178,2]
[359619221,1746186640208,-400.0,0.00019178,2]
[359619223,1746186640217,-400.0,0.00019178,2]
[359619225,1746186640227,-400.0,0.00019178,2]
[359619227,1746186640236,-232.14,0.00019178,2]
[359619229,1746186640246,-400.0,0.00019178,2]
[359619231,1746186640255,-438.74,0.00019178,2]
[359619233,1746186640265,-577.17,0.00019178,2]
[359619235,1746186640275,-400.0,0.00019178,2]
[359619237,1746186640284,-421.31,0.00019178,2]
[359619239,1746186640294,-400.0,0.00019178,2]
[359619241,1746186640304,-1179.12,0.00019178,2]
[359619243,1746186640313,-302.05742415,0.00019178,2]
[359619245,1746186640322,-400.0,0.00019178,2]
[359619247,1746186640332,-648.0,0.00019178,2]
[359619249,1746186640342,-400.0,0.00019178,2]
[359619251,1746186640351,-400.0,0.00019178,2]
[359619253,1746186640361,-400.0,0.00019178,2]
[359619255,1746186640371,-400.0,0.00019178,2]
[359619257,1746186640381,-400.0,0.00019178,2]
[359619259,1746186640391,-400.0,0.00019178,2]
[359619261,1746186640400,-400.0,0.00019178,2]
[359619263,1746186640410,-400.0,0.00019178,2]
[359619265,1746186640419,-400.0,0.00019178,2]
[359619267,1746186640429,-509.09,0.00019178,2]
[359619269,1746186640438,-1886.08,0.00019178,2]
[359619271,1746186640448,-400.0,0.00019178,2]
[359619273,1746186640458,-400.0,0.00019178,2]
[359619275,1746186640468,-400.0,0.00019178,2]
[359619277,1746186640478,-511.24697722,0.00019178,2]
[359619279,1746186640487,-400.0,0.00019178,2]
[359619281,1746186640497,-400.0,0.00019178,2]
[359619283,1746186640507,-400.0,0.00019178,2]
[359619285,1746186640516,-599.84,0.00019178,2]
[359619287,1746186640526,-400.0,0.00019178,2]
[359619289,1746186640535,-400.0,0.00019178,2]
[359619291,1746186640545,-171.86,0.00019178,2]
[359619293,1746186640554,-200.0,0.00019178,2]
[359619295,1746186640563,-1037.11,0.00019178,2]
[359619297,1746186640573,-519.02725028,0.00019178,2]
[359619299,1746186640582,-400.0,0.00019178,2]
[359619301,1746186640593,-400.0,0.00019178,2]
[359619303,1746186640603,-400.0,0.00019178,2]
[359619305,1746186640612,-611.45,0.00019178,2]
[359619307,1746186640621,-400.0,0.00019178,2]
[359619308,1746186640631,-1046.86,0.00019178,2]
[359619311,1746186640641,-662.9,0.00019178,2]
[359619313,1746186640650,-399.32,0.00019178,2]
[359619315,1746186640660,-400.0,0.00019178,2]
[359619316,1746186640669,-695.51,0.00019178,2]
[359619318,1746186640678,-400.0,0.00019178,2]
[359619320,1746186640688,-400.0,0.00019178,2]
[359619323,1746186640698,-400.0,0.00019178,2]
[359619325,1746186640707,-191.8726609,0.00019178,2]
[359619327,1746186640717,-400.0,0.00019178,2]
[359619329,1746186640726,-650.59,0.00019178,2]
[359619331,1746186640735,-400.0,0.00019178,2]
[359619333,1746186640744,-400.0,0.00019178,2]
[359619335,1746186640754,-400.0,0.00019178,2]
[359619337,1746186640763,-400.0,0.00019178,2]
[359619339,1746186640773,-400.0,0.00019178,2]
[359619341,1746186640783,-400.0,0.00019178,2]
[359619343,1746186640794,-400.0,0.00019178,2]
[359619345,1746186640804,-500.0,0.00019178,2]
[359619347,1746186640819,-400.0,0.00019178,2]
[359619349,1746186640829,-965.89,0.00019178,2]
[359619351,1746186640840,-1427.8,0.00019178,2]
[359619353,1746186640850,-400.0,0.00019178,2]
[359619355,1746186640859,-747.04,0.00019178,2]
[359619358,1746186640870,-400.0,0.00019178,2]
[359619360,1746186640879,-926.82,0.00019178,2]
[359619362,1746186640889,-400.0,0.00019178,2]
[359619364,1746186640899,-400.0,0.00019178,2]
[359619366,1746186640909,-725.7,0.00019178,2]
[359619368,1746186640918,-402.92,0.00019178,2]
[359619370,1746186640928,-1150.81,0.00019178,2]
[359619372,1746186640938,-400.0,0.00019178,2]
[359619374,1746186640947,-400.0,0.00019178,2]
[359619376,1746186640957,-400.99,0.00019178,2]
[359619378,1746186640966,-562.15,0.00019178,2]
[359619380,1746186640975,-400.0,0.00019178,2]
[359619382,1746186640985,-400.0,0.00019178,2]
[359619384,1746186640994,-734.15,0.00019178,2]
[359619386,1746186641004,-400.0,0.00019178,2]
[359619388,1746186641013,-456.28,0.00019178,2]
[359619390,1746186641022,-400.0,0.00019178,2]
[359619392,1746186641031,-858.78,0.00019178,2]
[359619394,1746186641041,-509.88,0.00019178,2]
[359619396,1746186641050,-510.59,0.00019178,2]
[359619398,1746186641059,-200.0,0.00019178,2]
[359619400,1746186641069,-400.0,0.00019178,2]
[359619402,1746186641079,-476.81,0.00019178,2]
[359619404,1746186641088,-400.0,0.00019178,2]
[359619406,1746186641097,-661.49,0.00019178,2]
[359619408,1746186641106,-1240.91,0.00019178,2]
[359619410,1746186641116,-400.0,0.00019178,2]
[359619412,1746186641125,-400.0,0.00019178,2]
[359619414,1746186641134,-400.0,0.00019178,2]
[359619416,1746186641144,-581.96,0.00019178,2]
[359619418,1746186641154,-231.07,0.00019178,2]
[359619420,1746186641164,-503.25479738,0.00019178,2]
[359619422,1746186641174,-1155.35,0.00019178,2]
[359619424,1746186641184,-500.0,0.00019178,2]
[359619426,1746186641194,-495.7,0.00019178,2]
[359619428,1746186641203,-400.0,0.00019178,2]
[359619430,1746186641213,-400.0,0.00019178,2]
[359619432,1746186641222,-400.0,0.00019178,2]
[359619434,1746186641231,-400.0,0.00019178,2]
[359619436,1746186641241,-1499.66,0.00019178,2]
[359619438,1746186641250,-400.0,0.00019178,2]
[359619440,1746186641259,-400.0,0.00019178,2]
[359619442,1746186641270,-468.94,0.00019178,2]
[359619443,1746186641279,-400.0,0.00019178,2]
[359619444,1746186641289,-512.68854593,0.00019178,2]
[359619445,1746186641299,-400.0,0.00019178,2]
[359619446,1746186641308,-400.0,0.00019178,2]
[359619447,1746186641318,-400.0,0.00019178,2]
[359619448,1746186641327,-400.0,0.00019178,2]
[359619449,1746186641336,-400.0,0.00019178,2]
[359619451,1746186641346,-2571.74,0.00019178,2]
[359619453,1746186641356,-561.99,0.00019178,2]
[359619455,1746186641365,-400.0,0.00019178,2]
[359619456,1746186641375,-400.0,0.00019178,2]
[359619458,1746186641386,-314.25463387,0.00019178,2]
[359619460,1746186641396,-400.0,0.00019178,2]
[359619461,1746186641405,-400.0,0.00019178,2]
[359619462,1746186641415,-400.0,0.00019178,2]
[359619463,1746186641424,-650.81,0.00019178,2]
[359619464,1746186641434,-400.0,0.00019178,2]
[359619465,1746186641443,-400.0,0.00019178,2]
[359619467,1746186641453,-400.0,0.00019178,2]
[359619469,1746186641463,-507.00807046,0.00019178,2]
[359619471,1746186641473,-500.66275046,0.00019178,2]
[359619473,1746186641482,-500.0,0.00019178,2]
[359619475,1746186641492,-400.0,0.00019178,2]
[359619476,1746186641502,-400.0,0.00019178,2]
[359619477,1746186641511,-400.0,0.00019178,2]
[359619478,1746186641520,-400.0,0.00019178,2]
[359619479,1746186641531,-400.0,0.00019178,2]
[359619480,1746186641541,-400.0,0.00019178,2]
[359619481,1746186641550,-500.0,0.00019178,2]
[359619482,1746186641560,-400.0,0.00019178,2]
[359619483,1746186641570,-247.53912289,0.00019178,2]
[359619484,1746186641579,-379.77267593,0.00019178,2]
[359619485,1746186641589,-400.0,0.00019178,2]
[359619486,1746186641598,-400.0,0.00019178,2]
[359619487,1746186641608,-1006.72,0.00019178,2]
[359619488,1746186641618,-464.58517912,0.00019178,2]
[359619489,1746186641628,-400.0,0.00019178,2]
[359619490,1746186641637,-1521.26,0.00019178,2]
[359619491,1746186641647,-1546.21,0.00019178,2]
[359619492,1746186641657,-200.0,0.00019178,2]
[359619493,1746186641667,-400.0,0.00019178,2]
[359619494,1746186641677,-400.0,0.00019178,2]
[359619495,1746186641686,-400.0,0.00019178,2]
[359619496,1746186641696,-400.0,0.00019178,2]